Workbook

Sheet Project Data
C3: Project Data
C5: General
C7: Company Name | D7: <Company Name> | I7: Legend
C8: Project Name | D8: <Project Name> | I8: Input Field
C9: Creation Date | D9: mm/dd/yyyy | I9: Result Field
C10: Last modified | D10: mm/dd/yyyy
C13: Skill Type
C15: Skill Type I | D15: Skill Type I | E15: Skill Type II | F15: Skill Type II | G15: Skill Type III | H15: Skill Type III
C16: Skill Type IV | D16: Skill Type IV | E16: Skill Type V | F16: Skill Type V | G16: Skill Type VI | H16: Skill Type VI
D18: =IF($D$15="","",$D$15) -> Skill Type I | E18: =IF($F$15="","",$F$15) -> Skill Type II | F18: =IF($H$15="","",$H$15) -> Skill Type III | G18: =IF($D$16="","",$D$16) -> Skill Type IV | H18: =IF($F$16="","",$F$16) -> Skill Type V | I18: =IF($H$16="","",$H$16) -> Skill Type VI
C19: Rate per Hour | D19: $50.00 | E19: $75.00 | F19: $100.00 | G19: $80.00 | H19: $120.00 | I19: $150.00
C22: Project Type
C24: Project Type I | D24: Project Type I | E24: Project Type II | F24: Project Type II | G24: Project Type III | H24: Project Type III
C25: Project Type IV | D25: Project Type IV | E25: Project Type V | F25: Project Type V | G25: Project Type VI | H25: Project Type VI
D27: =IF($D$24="","",$D$24) -> Project Type I | E27: =IF($F$24="","",$F$24) -> Project Type II | F27: =IF($H$24="","",$H$24) -> Project Type III | G27: =IF($D$25="","",$D$25) -> Project Type IV | H27: =IF($F$25="","",$F$25) -> Project Type V | I27: =IF($H$25="","",$H$25) -> Project Type VI
C28: =IF($D$15="","",$D$15) -> Skill Type I | D28: 15.00% | E28: 15.00% | F28: 5.00% | G28: 20.00% | H28: 25.00% | I28: 5.00%
C29: =IF($F$15="","",$F$15) -> Skill Type II | D29: 5.00% | E29: 20.00% | F29: 10.00% | G29: 15.00% | H29: 10.00% | I29: 10.00%
C30: =IF($H$15="","",$H$15) -> Skill Type III | D30: 25.00% | E30: 5.00% | F30: 20.00% | G30: 15.00% | H30: 15.00% | I30: 25.00%
C31: =IF($D$16="","",$D$16) -> Skill Type IV | D31: 15.00% | E31: 5.00% | F31: 15.00% | G31: 5.00% | H31: 20.00% | I31: 15.00%
C32: =IF($F$16="","",$F$16) -> Skill Type V | D32: 20.00% | E32: 30.00% | F32: 25.00% | G32: 15.00% | H32: 15.00% | I32: 20.00%
C33: =IF($H$16="","",$H$16) -> Skill Type VI | D33: 20.00% | E33: 25.00% | F33: 25.00% | G33: 30.00% | H33: 15.00% | I33: 25.00%
C35: Total | D35: =SUM(D28:D33) -> 100.00% | E35: =SUM(E28:E33) -> 100.00% | F35: =SUM(F28:F33) -> 100.00% | G35: =SUM(G28:G33) -> 100.00% | H35: =SUM(H28:H33) -> 100.00% | I35: =SUM(I28:I33) -> 100.00%

Sheet Project Planning
C3: Project Planning
C5: =IF('Project Data'!D8="","",'Project Data'!D8) -> <Project Name>
D7: Project Type | E7: Estimated Start Date | F7: Estimated Due Date | G7: Estimated Work (Hours) | H7: Duration (Days) | I7: Finished (yes/no) | J7: Overdue (yes/no)
D8: Project Type I | E8: =TODAY() -> 2023-09-03 | F8: =TODAY()+28 -> 2023-10-01 | G8: 320 | H8: =NETWORKDAYS(E8,F8) -> 20 | I8: =IF(OR('Project Tracking'!F8<=TODAY(),'Project Tracking'!F8=""),"no","yes") -> yes | J8: =IF(F8<'Project Tracking'!F8,"yes","no") -> yes
D10: ='Project Data'!D18 -> Skill Type I | E10: ='Project Data'!E18 -> Skill Type II | F10: ='Project Data'!F18 -> Skill Type III | G10: ='Project Data'!G18 -> Skill Type IV | H10: ='Project Data'!H18 -> Skill Type V | I10: ='Project Data'!I18 -> Skill Type VI | J10: Total
C11: Costs | D11: =HLOOKUP($D$8,'Project Data'!$C$27:$I$33,2,0)*'Project Data'!D19*$G$8 -> $2,400.00 | E11: =HLOOKUP($D$8,'Project Data'!$C$27:$I$33,3,0)*'Project Data'!E19*$G$8 -> $1,200.00 | F11: =HLOOKUP($D$8,'Project Data'!$C$27:$I$33,4,0)*'Project Data'!F19*$G$8 -> $8,000.00 | G11: =HLOOKUP($D$8,'Project Data'!$C$27:$I$33,5,0)*'Project Data'!G19*$G$8 -> $3,840.00 | H11: =HLOOKUP($D$8,'Project Data'!$C$27:$I$33,6,0)*'Project Data'!H19*$G$8 -> $7,680.00 | I11: =HLOOKUP($D$8,'Project Data'!$C$27:$I$33,7,0)*'Project Data'!I19*$G$8 -> $9,600.00 | J11: =SUM(D11:I11) -> $32,720.00
C12: Hours | D12: =D11/'Project Data'!D19 -> 48 | E12: =E11/'Project Data'!E19 -> 16 | F12: =F11/'Project Data'!F19 -> 80 | G12: =G11/'Project Data'!G19 -> 48 | H12: =H11/'Project Data'!H19 -> 64 | I12: =I11/'Project Data'!I19 -> 64 | J12: =SUM(D12:I12) -> 320

Sheet Project Tracking
C3: Project Tracking
C5: =IF('Project Data'!D8="","",'Project Data'!D8) -> <Project Name>
D7: Project Type | E7: Actual Start Date | F7: Actual Due Date | G7: Actual Work (Hours) | H7: Duration (Days)
D8: ='Project Planning'!D8 -> Project Type I | E8: =TODAY()+1 -> 2023-09-04 | F8: =TODAY()+30 -> 2023-10-03 | G8: =SUM(D12:I12) -> 319 | H8: =IF(F8="","",NETWORKDAYS(E8,F8)) -> 22
D10: ='Project Data'!D18 -> Skill Type I | E10: ='Project Data'!E18 -> Skill Type II | F10: ='Project Data'!F18 -> Skill Type III | G10: ='Project Data'!G18 -> Skill Type IV | H10: ='Project Data'!H18 -> Skill Type V | I10: ='Project Data'!I18 -> Skill Type VI | J10: Total
C11: Costs | D11: ='Project Data'!D19*D12 -> $1,500.00 | E11: ='Project Data'!E19*E12 -> $1,125.00 | F11: ='Project Data'!F19*F12 -> $5,000.00 | G11: ='Project Data'!G19*G12 -> $7,040.00 | H11: ='Project Data'!H19*H12 -> $11,280.00 | I11: ='Project Data'!I19*I12 -> $6,300.00 | J11: =SUM(D11:I11) -> $32,245.00
C12: Hours | D12: 30 | E12: 15 | F12: 50 | G12: 88 | H12: 94 | I12: 42 | J12: =SUM(D12:I12) -> 319

Sheet Project Comparison
C3: Project Target/Actual Comparison
C5: =IF('Project Data'!D8="","",'Project Data'!D8) -> <Project Name>
D7: ='Project Data'!D18 -> Skill Type I | E7: ='Project Data'!E18 -> Skill Type II | F7: ='Project Data'!F18 -> Skill Type III | G7: ='Project Data'!G18 -> Skill Type IV | H7: ='Project Data'!H18 -> Skill Type V | I7: ='Project Data'!I18 -> Skill Type VI | J7: Total
C8: Costs (planned) | D8: ='Project Planning'!D11 -> $2,400.00 | E8: ='Project Planning'!F11 -> $8,000.00 | F8: ='Project Planning'!F11 -> $8,000.00 | G8: ='Project Planning'!G11 -> $3,840.00 | H8: ='Project Planning'!H11 -> $7,680.00 | I8: ='Project Planning'!I11 -> $9,600.00 | J8: =SUM(D8:I8) -> $39,520.00
C9: Costs (actual) | D9: ='Project Tracking'!D11 -> $1,500.00 | E9: ='Project Tracking'!E11 -> $1,125.00 | F9: ='Project Tracking'!F11 -> $5,000.00 | G9: ='Project Tracking'!G11 -> $7,040.00 | H9: ='Project Tracking'!H11 -> $11,280.00 | I9: ='Project Tracking'!I11 -> $6,300.00 | J9: =SUM(D9:I9) -> $32,245.00
D11: ='Project Data'!D18 -> Skill Type I | E11: ='Project Data'!E18 -> Skill Type II | F11: ='Project Data'!F18 -> Skill Type III | G11: ='Project Data'!G18 -> Skill Type IV | H11: ='Project Data'!H18 -> Skill Type V | I11: ='Project Data'!I18 -> Skill Type VI | J11: Total
C12: Hours (planned) | D12: ='Project Planning'!D12 -> 48 | E12: ='Project Planning'!F12 -> 80 | F12: ='Project Planning'!F12 -> 80 | G12: ='Project Planning'!G12 -> 48 | H12: ='Project Planning'!H12 -> 64 | I12: ='Project Planning'!I12 -> 64 | J12: =SUM(D12:I12) -> 384
C13: Hours (actual) | D13: ='Project Tracking'!D12 -> 30 | E13: ='Project Tracking'!E12 -> 15 | F13: ='Project Tracking'!F12 -> 50 | G13: ='Project Tracking'!G12 -> 88 | H13: ='Project Tracking'!H12 -> 94 | I13: ='Project Tracking'!I12 -> 42 | J13: =SUM(D13:I13) -> 319
C16: Charts
